Workbook

Sheet Goodman
B2: Diagrama de Goodman
Y4: =+D22 -> 16074.64925 | Z4: 0
C5: Datos de las varillas | F5: Referencias - UTS (psi) | Y5: =+Y4 -> 16074.64925 | Z5: =+D24 -> 44041.9902
C6: Grado de Acero | D6: Alta Res. | F6: C | G6: 90000 | Y6: 0 | Z6: =+Z5 -> 44041.9902
C7: UTS (psi) | D7: =VLOOKUP(D6,F6:G12,2,0) -> 140000 | F7: K | G7: 90000
C8: Fs, Factor de servicio | D8: 1 | E8: 1 | F8: D | G8: 115000
C9: A | D9: 4 | E9: 0.9 | F9: D Alloy | G9: 120000
C10: B | D10: 0.5625 | E10: 0.8 | F10: D Especial | G10: 125000 | V10: =200/1.75 -> 114.2857143
F11: Alta Res. | G11: 140000
F12: Ingresar otra
C15: (*) Datos a ser ingresados o seleccionados
D16: Tramo 1 | E16: Tramo 2 | F16: Tramo 3 | G16: Tramo 4
C17: Diametro varilla (pulg) (*) | D17: 1 | E17: 0.875 | F17: 0.75 | G17: 1
C18: area-pulg 2 | D18: =+PI()*D17^2/4 -> 0.7853981634 | E18: =+PI()*E17^2/4 -> 0.6013204689 | F18: =+PI()*F17^2/4 -> 0.4417864669 | G18: =+PI()*G17^2/4 -> 0.7853981634 | U18: Sadm | V18: Smin
C19: Carga mínima (lbs) (*) | D19: 12625 | E19: 6148 | F19: 1935 | G19: -2899 | U19: =+($D$7/$D$9+$D$10*V19)*$D$8 -> 94062.5 | V19: 105000 | X19: 0 | Y19: 0
C20: Carga máxima (lbs) (*) | D20: 28652 | E20: 20855 | F20: 14356 | G20: 6894 | U20: =+($D$7/$D$9+$D$10*V20)*$D$8 -> 35000 | V20: 0 | X20: 105000 | Y20: =+X20 -> 105000
N21: Tension maxima admisible | U21: =+($D$7/$D$9+$D$10*V21)*$D$8 -> 31236.24419 | V21: =+G22-3000 -> -6691.12144 | X21: 0 | Y21: =+D7/4 -> 35000
C22: Smin, Tensión mínima (psi) | D22: =+D19/D18 -> 16074.64925 | E22: =+E19/E18 -> 10224.16551 | F22: =+F19/F18 -> 4379.944034 | G22: =+G19/G18 -> -3691.12144
C23: Smax, Tensión máxima (psi) | D23: =+D20/D18 -> 36480.85944 | E23: =+E20/E18 -> 34682.00582 | F23: =+F20/F18 -> 32495.33672 | G23: =+G20/G18 -> 8777.713421
C24: Tensión máxima admisible (psi) | D24: =($D$10*D22+($D$7/$D$9))*$D$8 -> 44041.9902 | E24: =($D$10*E22+($D$7/$D$9))*$D$8 -> 40751.0931 | F24: =($D$10*F22+($D$7/$D$9))*$D$8 -> 37463.71852 | G24: =($D$10*G22+($D$7/$D$9))*$D$8 -> 32923.74419
C25: % de Goodman | D25: =+(D23-D22)/(D24-D22) -> 0.729644274 | E25: =+(E23-E22)/(E24-E22) -> 0.8011890563 | F25: =+(F23-F22)/(F24-F22) -> 0.8498242151 | G25: =+(G23-G22)/(G24-G22) -> 0.3405402327
C27: Observaciones

Sheet teoria
A1: Diagrama de Goodman modificado.
A2: Consiste en las rectas trazadas hasta Se (límite de resistencia a la fatiga), arriba y abajo del
A3: origen
A4: El esfuerzo medio está representado en el eje horizontal, los demás esfuerzos en el eje vertical.
A5: La línea de esfuerzo medio con una pendiente de 1, va del origen a la resistencia última de la
A6: pieza. La resistencia de fluencia, ser indica en ambos ejes puesto que la cadencia sería el
A7: criterio de falla si smax fuese mayor a Sy.
A8: Diagrama de fatiga con cuatro criterios de falla.
A9: Para cada criterio, los puntos sobre y fuera de la línea respectiva indican una falla.
A10: Se tienen la línea de Soderberg, la de Goodman modificada, la de Gerber y la de fluencia o
A11: cadencia.
A12: Relación de Soderberg.
A13: Relación de Goodman.
A14: Relación de Gerber.
A58: 6\
A59: 6\
A60: 6X
A61: 6H
A62: /tQHDGHIOXHQFLD
A63: /tQHDGH*HUEHU
A64: /tQHDGH*RRGPDQ
A65: /tQHDGH6RGHUEHUJ
A66: 6P
A67: 6D
A68: P
A69: (VIXHU]RPHGLR
A70: Como las resistencias Sa y Sm, pueden colocarse en términos de los esfuerzos sa y sm,
A71: haciendo uso de un factor de seguridad n, como:
A72: Las relaciones descritas, pueden escribirse consecuentemente de la siguiente manera:
A73: La línea de esfuerzo seguro, se traza paralelamente a la línea de Goodman modificada, por
A74: ejemplo la que pasa por A, representando el lugar geométrico de todos los conjuntos de
A75: esfuerzos sa, sm con un factor n de seguridad.
A123: Algunos usos:
A124: a) Con sm constante, determinar n.
A125: En una barra circular de 1.5” AISI1050 (Sy=84 kpsi, Su=100kpsi) estirada en frío, sometida a
A126: tensiones fluctuantes que originan:
A127: sm=4.53 kpsi, sa=4.53 kpsi y un l
A128: ímite de fatiga d
A129: el 50% de Se=20 kpsi.
A130: Se grafica:
A131: Obteniéndose Sa=19,049 kpsi y con n=Sa/
A132: sa, n=4.215.
A133: 0
A134: 20
A135: 40
A136: 60
A137: 80
A138: 100
A139: 120
A140: 0
A141: 10
A142: 20
A143: 19049
A144: Sa(
A145: Sm)
A146: 4.53
A147: Sm
A148: b) Con sa constante, determinar n.
A149: Se grafica:
A188: 0
A189: 20
A190: 40
A191: 60
A192: 80
A193: 100
A194: 120
A195: 0
A196: 10
A197: 20
A198: 4.53
A199: Sa1(
A200: Sm1)
A201: 77.35
A202: Sm1
A203: Obteniéndose con
A204: sa=Sa=4.
A205: 53 kpsi, a Sm=77.35 kpsi y con n=Sm/sm, n=17.075.
A206: c) Con sa/sm constante, determinar n.
A207: Se grafican Sa=ASm donde A=
A208: a/
A209: m=constante, y
A210: , resultando en su
A211: intersección:
A212: Sm=16667 kips, por lo que n=Sm/sm es n=3.679.
A213: 0
A214: 20
A215: 40
A216: 60
A217: 80
A218: 100
A219: 120
A220: 0
A221: 10
A222: 20
A223: 25
A224: 0
A225: a
A226: 16667
A227: Sa(
A228: Sm)
A229: Sa1(
A230: Sm)
A231: 120
A232: 0
A233: 16667
A234: m
A235: Sm
A236: Conclusión.
A237: Como pudo observarse, el enfoque gráfico y algebraico, basado en los diagramas que
A238: representan los criterios de falla mostrados, resulta de fácil y rápido uso, para efectos de
A239: cálculo de coeficientes de seguridad y estimaciones de vida de un material.
